bitfinex-derivatives/quotes_BTCF0:USTF0_20250424
["timestamp","ask_amount","ask_price","bid_price","bid_amount"]
[1745463390116,1.58693408,93112.0,93111.0,0.00536991]
[1745463390307,1.52294992,93112.0,93111.0,0.00536991]
[1745463390504,1.65838992,93112.0,93111.0,0.00536991]
[1745463390900,1.58634992,93112.0,93111.0,0.00536991]
[1745463391099,1.48638992,93112.0,93111.0,0.00536991]
[1745463391305,1.59378993,93112.0,93111.0,0.00536991]
[1745463391911,1.40341894,93112.0,93111.0,0.00536991]
[1745463392110,1.47549894,93112.0,93111.0,0.00536991]
[1745463392515,1.40341894,93112.0,93111.0,0.00536991]
[1745463392818,1.47549894,93112.0,93111.0,0.00536991]
[1745463393019,1.40341894,93112.0,93111.0,0.00536991]
[1745463393210,1.47549894,93112.0,93111.0,0.00536991]
[1745463393407,1.47549894,93112.0,93111.0,0.11273421]
[1745463394116,0.93525584,93112.0,93111.0,0.11273421]
[1745463394311,1.11469894,93112.0,93111.0,0.11273421]
[1745463395313,1.11469894,93112.0,93111.0,0.00536991]
[1745463396013,1.04261894,93112.0,93111.0,0.00536991]
[1745463396205,1.11469894,93112.0,93111.0,0.00536991]
[1745463396406,1.04261894,93112.0,93111.0,0.00536991]
[1745463396612,1.11469894,93112.0,93111.0,0.00536991]
[1745463397008,1.11469894,93112.0,93111.0,0.11273421]
[1745463397205,1.11469894,93112.0,93111.0,0.17736991]
[1745463398010,1.11469894,93112.0,93111.0,0.20916991]
[1745463399107,1.04261894,93112.0,93111.0,0.20916991]
[1745463399408,1.11469894,93112.0,93111.0,0.20916991]
[1745463399916,1.11469894,93112.0,93111.0,0.31653421]
[1745463404624,0.51305584,93112.0,93111.0,0.31653421]
[1745463404809,0.51305584,93112.0,93111.0,0.67393421]
[1745463405423,0.01305584,93112.0,93111.0,0.67393421]
[1745463405620,0.0305,93129.0,93125.0,0.1073481]
[1745463406208,0.36900756,93126.0,93125.0,0.2793481]
[1745463406428,0.36900756,93126.0,93125.0,0.3410481]
[1745463407215,0.37600756,93126.0,93125.0,0.3410481]
[1745463407820,0.38100756,93126.0,93125.0,0.3410481]
[1745463408516,0.37700756,93126.0,93125.0,0.3420481]
[1745463409315,0.37200756,93126.0,93125.0,0.3430481]
[1745463409721,0.37200756,93126.0,93125.0,0.2057]
[1745463409722,0.84015456,93126.0,93125.0,0.2057]
[1745463412931,0.84015456,93126.0,93125.0,0.3130481]
[1745463413926,0.84015456,93126.0,93125.0,0.2057]
[1745463415724,0.84015456,93126.0,93125.0,0.174]
[1745463416731,1.34015456,93126.0,93125.0,0.174]
[1745463417230,1.40475456,93126.0,93125.0,0.174]
[1745463418126,1.40475456,93126.0,93125.0,0.2042]
[1745463421637,1.40475456,93126.0,93125.0,0.3115481]
[1745463422226,1.37255456,93126.0,93125.0,0.3115481]
[1745463422427,1.37255456,93126.0,93125.0,0.3427481]
[1745463422634,1.40455456,93126.0,93125.0,0.3427481]
[1745463423536,1.23280756,93126.0,93125.0,0.3427481]
[1745463423732,1.34015456,93126.0,93125.0,0.3427481]
[1745463424533,0.37200756,93126.0,93125.0,0.3427481]
[1745463425035,0.08113157,93133.0,93132.0,0.1073401]
[1745463425434,0.08113157,93133.0,93132.0,0.4647121]
[1745463425926,0.08113157,93133.0,93132.0,0.5283121]
[1745463426234,0.08113157,93133.0,93132.0,0.7003121]
[1745463426636,0.08413157,93133.0,93132.0,0.7003121]
[1745463426838,0.08413157,93133.0,93132.0,0.4503121]
[1745463427136,0.08613157,93133.0,93132.0,0.4513121]
[1745463428132,0.09414094,93133.0,93132.0,0.4513121]
[1745463428936,0.01300937,93133.0,93132.0,0.4513121]
[1745463434333,0.12034827,93133.0,93132.0,0.2053]
[1745463434537,0.12016998,93133.0,93132.0,0.173]
[1745463435133,0.18466998,93133.0,93132.0,0.173]
[1745463436140,0.18466998,93133.0,93132.0,0.2036]
[1745463436831,0.18466998,93133.0,93132.0,0.3109401]
[1745463441541,0.00482171,93133.0,93132.0,0.7791121]
[1745463441738,0.08113157,93140.0,93139.0,0.107332]
[1745463442239,0.08935095,93140.0,93139.0,0.38669599]
[1745463442640,0.08935095,93140.0,93139.0,0.44879599]
[1745463443144,0.09335095,93140.0,93139.0,0.44979599]
[1745463443345,0.09335095,93140.0,93139.0,0.45079599]
[1745463443532,0.09635095,93140.0,93139.0,0.45079599]
[1745463443737,0.01521938,93140.0,93139.0,0.45079599]
[1745463444146,0.00921938,93140.0,93139.0,0.45179599]
[1745463444340,0.00921938,93140.0,93139.0,0.45279599]
[1745463445538,0.001,93140.0,93139.0,0.45279599]
[1745463450042,0.3608,93152.0,93151.0,0.1073182]
[1745463450043,0.08104591,93152.0,93151.0,0.1073182]
[1745463450838,0.08104591,93152.0,93151.0,0.1718182]
[1745463451140,0.08104591,93152.0,93151.0,0.3438182]
[1745463452348,0.08304591,93152.0,93151.0,0.3438182]
[1745463453240,0.08404591,93152.0,93151.0,0.3438182]
[1745463455052,0.003,93152.0,93151.0,0.3438182]
[1745463455751,0.0676,93152.0,93151.0,0.3438182]
[1745463456045,0.0355,93152.0,93151.0,0.3438182]
[1745463461746,0.0355,93152.0,93151.0,0.3121182]
[1745463461945,0.0673,93152.0,93151.0,0.3121182]
[1745463462946,0.0673,93152.0,93151.0,0.3451182]
[1745463462947,0.0355,93152.0,93151.0,0.3451182]
[1745463464845,0.0666,93152.0,93151.0,0.3451182]
[1745463465646,0.0666,93152.0,93151.0,0.3121182]
[1745463466146,0.173917,93152.0,93151.0,0.172]
[1745463466354,0.0666,93152.0,93151.0,0.2793182]
[1745463472059,0.173917,93152.0,93151.0,0.2793182]
[1745463472448,0.0666,93152.0,93151.0,0.172]
[1745463472646,0.531269,93152.0,93151.0,0.1630783]
[1745463473254,0.1073275,93145.0,93144.0,0.0536624]
[1745463473450,0.4681275,93145.0,93144.0,0.0536624]
[1745463473649,0.5644275,93145.0,93144.0,0.0536624]
[1745463474359,0.5644275,93145.0,93144.0,0.2256624]
[1745463474559,0.5644275,93145.0,93144.0,0.2266624]
[1745463475562,0.5654275,93145.0,93144.0,0.2286624]
[1745463475765,0.5654275,93145.0,93144.0,0.175]
[1745463477256,0.5654275,93145.0,93144.0,0.2823262]
[1745463481056,0.4581,93145.0,93144.0,0.2823262]
[1745463481260,0.4256,93145.0,93144.0,0.2823262]
[1745463483867,0.5329251,93145.0,93144.0,0.2823262]
[1745463484067,0.4256,93145.0,93144.0,0.2823262]
[1745463485160,0.5329251,93145.0,93144.0,0.2823262]
[1745463486360,0.5329251,93145.0,93144.0,0.175]
[1745463486562,0.5329251,93145.0,93144.0,0.2823262]
[1745463488063,0.4256,93145.0,93144.0,0.2823262]
[1745463488264,0.5329251,93145.0,93144.0,0.2823262]
[1745463491357,0.4256,93145.0,93144.0,0.2823262]
[1745463491559,0.3941,93145.0,93144.0,0.2823262]
[1745463492772,0.5014251,93145.0,93144.0,0.2823262]
[1745463493072,0.3941,93145.0,93144.0,0.2823262]
[1745463494072,0.5014251,93145.0,93144.0,0.2823262]
[1745463494471,0.001,93145.0,93144.0,0.2823262]
[1745463495168,0.4691251,93145.0,93144.0,0.175]
[1745463495567,0.3618,93145.0,93144.0,0.2823262]
[1745463495768,0.4691251,93145.0,93144.0,0.2823262]
[1745463495969,0.5337251,93145.0,93144.0,0.2823262]
[1745463497576,0.4264,93145.0,93144.0,0.2823262]
[1745463498573,0.0656,93145.0,93144.0,0.2823262]
[1745463498770,0.1729251,93145.0,93144.0,0.2823262]
[1745463499981,0.0656,93145.0,93144.0,0.2823262]
[1745463500170,0.001,93145.0,93144.0,0.2823262]
[1745463500883,0.001,93145.0,93144.0,0.3140262]
[1745463504366,0.001,93145.0,93144.0,0.4213862]
[1745463508283,0.001,93145.0,93144.0,0.3140262]
[1745463509668,0.0642,93145.0,93144.0,0.3140262]
[1745463510972,0.0342,93145.0,93144.0,0.3140262]
[1745463511176,0.001,93145.0,93144.0,0.3140262]
[1745463513081,0.0336,93145.0,93144.0,0.3140262]
[1745463515387,0.0336,93145.0,93144.0,0.3464262]
[1745463518985,0.0336,93145.0,93144.0,0.3140262]
[1745463525697,0.1409251,93145.0,93144.0,0.175]
[1745463526196,0.1409251,93145.0,93144.0,0.2823262]
[1745463527484,0.0336,93145.0,93144.0,0.2823262]
[1745463528198,0.1718251,93145.0,93144.0,0.2823262]
[1745463537900,0.1718251,93145.0,93144.0,0.175]
[1745463538204,0.1718251,93145.0,93144.0,0.003]
[1745463539803,0.1718251,93145.0,93144.0,0.1103262]
[1745463543299,0.1718251,93145.0,93144.0,0.2823262]
[1745463543701,0.0645,93145.0,93144.0,0.2823262]
[1745463544205,0.1718251,93145.0,93144.0,0.2823262]
[1745463544593,0.1718251,93145.0,93144.0,0.3128262]
[1745463545802,0.0645,93145.0,93144.0,0.3128262]
[1745463546006,0.0336,93145.0,93144.0,0.3128262]
[1745463546207,0.001,93145.0,93144.0,0.3436262]
[1745463546607,0.001,93145.0,93144.0,0.34940815]
[1745463550510,0.001,93145.0,93144.0,0.34942788]
[1745463552311,0.001,93145.0,93144.0,0.34938239]
[1745463553306,0.1083251,93145.0,93144.0,0.34938239]
[1745463553612,0.1083251,93145.0,93144.0,0.3128262]
[1745463553907,0.0335,93145.0,93144.0,0.3128262]
[1745463554211,0.0653,93145.0,93144.0,0.3128262]
[1745463555107,0.1726251,93145.0,93144.0,0.3128262]
[1745463556604,0.1726251,93145.0,93144.0,0.175]
[1745463557207,0.1726251,93145.0,93144.0,0.003]
[1745463558504,0.1726251,93145.0,93144.0,0.1103262]
[1745463564023,0.1726251,93145.0,93144.0,0.003]
[1745463564224,0.1726251,93145.0,93144.0,0.175]
[1745463564624,0.1726251,93145.0,93144.0,0.2823262]
[1745463564923,0.1726251,93145.0,93144.0,0.3136262]
[1745463565122,0.28068632,93145.0,93144.0,0.2063]
[1745463565629,0.14086122,93145.0,93144.0,0.3136262]
[1745463565820,0.10906122,93145.0,93144.0,0.3136262]
[1745463569425,0.001,93145.0,93144.0,0.3136262]
[1745463591245,0.0327,93145.0,93144.0,0.3136262]
[1745463602836,0.0325,93154.0,93144.0,0.3136262]
[1745463602837,0.3608,93199.0,93144.0,1.2327]
[1745463603037,0.0303,93196.0,93188.0,0.0536372]
[1745463603345,0.0303,93196.0,93195.0,0.4680675]
[1745463603642,0.00797836,93196.0,93195.0,0.4680675]
[1745463603831,0.0317,93196.0,93195.0,0.4680675]
[1745463604229,0.0387,93196.0,93195.0,0.6400675]
[1745463604841,0.013,93196.0,93195.0,0.6410675]
[1745463605432,0.013,93196.0,93195.0,0.6728675]
[1745463606034,0.0454,93196.0,93195.0,0.6728675]
[1745463606233,0.0782,93196.0,93195.0,0.6728675]
[1745463606544,0.0782,93196.0,93195.0,0.6738675]
[1745463607140,0.0682,93196.0,93195.0,0.6728675]
[1745463607343,0.0712,93196.0,93195.0,0.6738675]
[1745463607934,0.0682,93196.0,93195.0,0.6728675]
[1745463608146,0.0692,93196.0,93195.0,0.6728675]
[1745463609235,0.0368,93196.0,93195.0,0.6728675]
[1745463609850,0.0324,93205.0,93204.0,0.1072571]
[1745463610051,0.0646,93205.0,93204.0,0.4680571]
[1745463610838,0.0686,93205.0,93204.0,0.4690571]
[1745463611236,0.0392,93205.0,93204.0,0.6410571]
[1745463611646,0.0352,93205.0,93204.0,0.6400571]
[1745463611943,0.004,93205.0,93204.0,0.6400571]
[1745463612148,0.0011,93207.0,93206.0,0.1072548]
[1745463612537,0.00789783,93220.0,93215.0,0.0536218]
[1745463612843,0.032,93218.0,93217.0,0.0536206]
[1745463613047,0.032,93218.0,93217.0,0.5864206]
[1745463613250,0.032,93218.0,93217.0,0.5328]
[1745463613443,0.032,93218.0,93217.0,0.6400422]
[1745463614139,0.139241,93218.0,93217.0,0.4680422]
[1745463614337,0.174441,93218.0,93217.0,0.4680422]
[1745463614642,0.177441,93218.0,93217.0,0.4680422]
[1745463614836,0.177441,93218.0,93217.0,0.1072422]
[1745463617543,0.0702,93218.0,93217.0,0.1072422]
[1745463617745,0.177441,93218.0,93217.0,0.1072422]
[1745463619149,0.0702,93218.0,93217.0,0.1072422]
[1745463620355,0.0702,93218.0,93217.0,0.2792422]
[1745463620547,0.0382,93218.0,93217.0,0.2792422]
[1745463621955,0.0382,93218.0,93217.0,0.6400422]
[1745463622356,0.00804351,93220.0,93219.0,0.1072399]
[1745463622553,0.0326,93222.0,93221.0,0.1072376]
[1745463623150,0.0326,93222.0,93221.0,0.2792376]
[1745463623853,0.0623,93229.0,93228.0,0.1072295]
[1745463623854,0.0308,93229.0,93228.0,0.1072295]
[1745463624055,0.0308,93229.0,93228.0,0.4680295]
[1745463624257,0.0321,93232.0,93231.0,0.1072261]
[1745463625253,0.0321,93232.0,93231.0,0.2792261]
[1745463626254,0.0308,93236.0,93235.0,0.1072215]
[1745463626449,0.0387221,93236.0,93235.0,0.1072215]
[1745463626655,0.0716221,93236.0,93235.0,0.1072215]
[1745463627257,0.0736221,93236.0,93235.0,0.2792215]
[1745463628250,0.1808424,93236.0,93235.0,0.2792215]
[1745463628468,0.0736221,93236.0,93235.0,0.2792215]
[1745463629259,0.0756221,93236.0,93235.0,0.2792215]
[1745463630364,0.1828424,93236.0,93235.0,0.6400215]
[1745463630547,0.0756221,93236.0,93235.0,0.6400215]
[1745463630746,0.0756221,93236.0,93235.0,0.6726215]
[1745463631758,0.1828424,93236.0,93235.0,0.6726215]
[1745463636257,0.2900984,93236.0,93235.0,0.5328]
[1745463637261,0.2900984,93236.0,93235.0,0.3608]
[1745463639261,0.1828424,93236.0,93235.0,0.4680215]
[1745463639974,0.0756221,93236.0,93235.0,0.4680215]
[1745463640159,0.0427221,93236.0,93235.0,0.6400215]
[1745463640359,0.0427221,93236.0,93235.0,0.6726215]
[1745463640868,0.1499424,93236.0,93235.0,0.6726215]
[1745463641863,0.0427221,93236.0,93235.0,0.6726215]
[1745463643069,0.0119221,93236.0,93235.0,0.6726215]
[1745463643484,0.004,93236.0,93235.0,0.6726215]
[1745463650869,0.0011,93237.0,93235.0,0.77987749]
[1745463651072,0.0318,93249.0,93248.0,0.1072065]
[1745463651375,0.0318,93249.0,93248.0,0.4680065]
[1745463652062,0.0318,93249.0,93248.0,0.6400065]
[1745463652267,0.0318,93249.0,93248.0,0.7030065]
[1745463652873,0.0348,93249.0,93248.0,0.7030065]
[1745463653477,0.0378,93249.0,93248.0,0.7030065]
[1745463653778,0.04598768,93249.0,93248.0,0.7030065]
[1745463656783,0.04598768,93249.0,93248.0,0.7030065]
[1745463658177,0.0052,93256.0,93255.0,0.1071985]
[1745463658494,0.033,93263.0,93262.0,0.1071904]
[1745463658672,0.033,93263.0,93262.0,0.4679904]
[1745463658868,0.00160917,93270.0,93266.0,0.1071858]
[1745463659064,0.0659,93269.0,93266.0,0.6399858]
[1745463659264,0.00897643,93267.0,93266.0,0.6399858]
[1745463659470,0.0011,93267.0,93266.0,0.6399858]
[1745463660174,0.0021,93267.0,93266.0,0.6399858]
[1745463661174,0.0021,93267.0,93266.0,0.4679858]
[1745463661175,0.067,93267.0,93266.0,0.4679858]
[1745463661772,0.07511211,93267.0,93266.0,0.4679858]
[1745463661980,0.04291211,93267.0,93266.0,0.4679858]
[1745463662780,0.0348,93267.0,93266.0,0.4679858]
[1745463663272,0.0348,93267.0,93266.0,0.6399858]
[1745463666071,0.0031,93267.0,93266.0,0.6399858]
[1745463666274,0.00160917,93270.0,93269.0,0.1071824]
[1745463666877,0.00160917,93270.0,93269.0,0.1399824]
[1745463667072,0.00160917,93270.0,93269.0,0.3119824]
[1745463667470,0.00360917,93270.0,93269.0,0.3119824]
[1745463667672,0.00360917,93270.0,93269.0,0.172]
[1745463667979,0.00360917,93270.0,93269.0,0.2791824]
[1745463668182,0.00360917,93270.0,93269.0,0.1071824]
[1745463668875,0.00460917,93270.0,93269.0,0.1071824]
[1745463669278,0.03760917,93270.0,93269.0,0.1071824]
[1745463671577,0.03760917,93270.0,93266.0,0.3608]
[1745463671777,0.1071847,93267.0,93266.0,0.3608]
[1745463671978,0.1071847,93267.0,93266.0,0.4679858]
[1745463672582,0.1071847,93267.0,93266.0,0.3608]
[1745463672788,0.21440471,93267.0,93266.0,0.3608]
[1745463673078,0.38640471,93267.0,93266.0,0.3608]
[1745463673983,0.38640471,93267.0,93266.0,0.4679858]
[1745463674882,0.38740471,93267.0,93266.0,0.4679858]
[1745463676181,0.173,93267.0,93266.0,0.4679858]
[1745463676480,0.2801847,93267.0,93266.0,0.4679858]
[1745463677187,0.10839685,93267.0,93266.0,0.4679858]
[1745463677484,0.10739685,93267.0,93266.0,0.4689858]
[1745463678387,0.10739685,93267.0,93266.0,0.4709858]
[1745463678788,0.00021215,93267.0,93266.0,0.4709858]
[1745463679584,0.10739685,93267.0,93266.0,0.4709858]
[1745463679781,0.17169685,93267.0,93266.0,0.4709858]
[1745463680082,0.00021215,93267.0,93266.0,1.0037858]
[1745463680285,0.00160917,93270.0,93269.0,0.1071824]
[1745463680782,0.00796031,93276.0,93275.0,0.1071755]
[1745463681086,0.0324,93286.0,93277.0,0.1071732]
[1745463681087,0.0643,93283.0,93277.0,0.1071732]
[1745463681786,0.0643,93283.0,93277.0,0.1701732]
[1745463681983,0.11600379,93278.0,93277.0,0.1701732]
[1745463682287,0.11600379,93278.0,93277.0,0.3421732]
[1745463682987,0.11600379,93278.0,93277.0,0.2791732]
[1745463683292,0.11700379,93278.0,93277.0,0.1071732]
[1745463684185,0.0089475,93278.0,93277.0,0.1071732]
[1745463684381,0.0099475,93278.0,93277.0,0.1071732]
[1745463684579,0.1071744,93276.0,93275.0,0.3608]
[1745463685079,0.2791744,93276.0,93275.0,0.3608]
[1745463685287,0.3419744,93276.0,93275.0,0.4679755]
[1745463685789,0.702808,93276.0,93275.0,0.1071755]
[1745463686089,0.5966,93276.0,93275.0,0.1071755]
[1745463686788,0.7037756,93276.0,93275.0,0.1071755]
[1745463688887,0.1071767,93274.0,93273.0,0.0535888]
[1745463689089,0.107179,93272.0,93271.0,0.160769]
[1745463689676,0.170079,93272.0,93271.0,0.160769]
[1745463692383,0.170079,93272.0,93271.0,0.161769]
[1745463694691,0.170079,93272.0,93271.0,0.0545896]
[1745463695092,0.170079,93272.0,93271.0,0.001]
[1745463695281,0.170079,93272.0,93271.0,0.1081801]
[1745463696098,0.342079,93272.0,93271.0,0.1081801]
[1745463702596,0.342079,93272.0,93271.0,0.001]
[1745463702899,0.342079,93272.0,93271.0,0.1081801]
[1745463703999,0.342079,93272.0,93271.0,0.001]
[1745463704199,0.342079,93272.0,93256.0,0.0306]
[1745463704200,0.0535924,93267.0,93256.0,0.0306]
[1745463704496,0.0535981,93257.0,93247.0,0.1608029]
[1745463704801,0.1072088,93248.0,93247.0,0.1608029]
[1745463705198,0.1072111,93244.0,93243.0,0.0536058]
[1745463707096,0.1072111,93244.0,93243.0,0.0586058]
[1745463708402,0.1072111,93244.0,93243.0,0.0626058]
[1745463709995,0.1072111,93244.0,93243.0,0.4234058]
[1745463711595,0.0535988,93256.0,93255.0,0.0535987]
[1745463711905,0.26893679,93258.0,93257.0,0.1071962]
[1745463712502,0.26893679,93258.0,93257.0,0.1384962]
[1745463712905,0.29973679,93258.0,93257.0,0.1384962]
[1745463713101,0.29973679,93258.0,93257.0,0.0313]
[1745463713408,0.29973679,93258.0,93257.0,0.1071962]
[1745463713597,0.1915932,93258.0,93257.0,0.1081962]
[1745463713792,0.2248932,93258.0,93257.0,0.1081962]
[1745463713998,0.2248932,93258.0,93257.0,0.1091962]
[1745463717204,0.1072111,93245.0,93244.0,0.2144118]
[1745463717407,0.0536049,93246.0,93245.0,0.10721]
[1745463717606,0.0536049,93246.0,93245.0,0.13911]
[1745463718000,0.0536034,93248.0,93247.0,0.1072077]
[1745463719325,0.0536034,93248.0,93247.0,0.2792077]
[1745463720019,0.0536034,93248.0,93247.0,0.2822077]
[1745463720215,0.0536034,93248.0,93247.0,0.2862077]
[1745463721121,0.0536034,93248.0,93247.0,0.1142077]
[1745463723320,0.0536034,93248.0,93247.0,0.3185077]
[1745463726215,0.0866034,93248.0,93247.0,0.1465077]
[1745463726414,0.0866034,93248.0,93247.0,0.1142077]
[1745463728824,0.0866034,93248.0,93247.0,0.007]
[1745463729025,0.0866034,93248.0,93247.0,0.1142077]
[1745463729927,0.1072192,93237.0,93225.0,0.16369545]
[1745463730123,0.5394592,93237.0,93228.0,0.1399289]
[1745463730333,0.6467152,93237.0,93228.0,0.0327]
[1745463730824,0.7095152,93237.0,93228.0,0.0327]
[1745463731016,0.7095152,93237.0,93228.0,0.1399292]
[1745463731218,0.8815152,93237.0,93228.0,0.1399292]
[1745463731917,0.8815152,93237.0,93230.0,0.1072269]
[1745463732130,0.7105152,93237.0,93236.0,0.01107254]
[1745463738045,0.6032592,93237.0,93236.0,0.01107254]
[1745463739544,0.1385192,93237.0,93236.0,0.11829284]
[1745463739843,0.1082192,93237.0,93236.0,0.11829284]
[1745463740347,0.1082192,93237.0,93236.0,0.29029284]
[1745463740845,0.1082192,93237.0,93236.0,0.35469284]
[1745463743737,0.4690192,93237.0,93236.0,0.21597254]
[1745463744143,0.4690192,93237.0,93236.0,0.15119284]
[1745463744447,0.5336192,93237.0,93236.0,0.15119284]
[1745463745135,0.5336192,93237.0,93236.0,0.04397254]
[1745463745742,0.5336192,93237.0,93236.0,0.01107254]
[1745463748340,0.6408752,93237.0,93236.0,0.01107254]
[1745463749943,0.1072307,93227.0,93226.0,0.1072313]
[1745463750142,0.1072307,93227.0,93226.0,0.1375313]
[1745463750542,0.1708307,93227.0,93226.0,0.1375313]
[1745463751136,0.1708307,93227.0,93226.0,0.3095313]
[1745463751337,0.1718307,93227.0,93226.0,0.3155313]
[1745463751739,0.1728307,93227.0,93226.0,0.3215313]
[1745463753036,0.1414307,93227.0,93226.0,0.3215313]
[1745463753432,0.1092307,93227.0,93226.0,0.3215313]
[1745463756436,0.0102071,93227.0,93226.0,0.3215313]
[1745463758038,0.002,93227.0,93226.0,0.3215313]
[1745463760049,0.07136,93239.0,93238.0,0.107218]
[1745463760352,0.1608241,93244.0,93243.0,0.1072111]
[1745463761243,0.1608241,93244.0,93243.0,0.2792111]
[1745463761845,0.2144312,93244.0,93243.0,0.2812111]
[1745463762056,0.2144312,93244.0,93243.0,0.2832111]
[1745463762442,0.22267082,93244.0,93243.0,0.2832111]
[1745463764952,0.58347082,93244.0,93243.0,0.2832111]
[1745463765461,0.58347082,93244.0,93243.0,0.176]
[1745463765746,0.1072387,93220.0,93217.0,0.16369545]
[1745463765958,0.1608559,93222.0,93221.0,0.1072376]
[1745463766146,0.0536187,93222.0,93221.0,0.2792376]
[1745463768051,0.0536187,93222.0,93221.0,0.2802376]
[1745463768256,0.0536187,93222.0,93221.0,0.1082376]
[1745463769152,0.0546187,93222.0,93221.0,0.1082376]
[1745463769558,0.0546187,93222.0,93221.0,0.1072376]
[1745463769859,0.0566187,93222.0,93221.0,0.1082376]
[1745463771561,0.0556187,93222.0,93221.0,0.1082376]
[1745463771855,0.0566187,93222.0,93221.0,0.1082376]
[1745463772552,0.0546187,93222.0,93221.0,0.1072376]
[1745463772756,0.0556187,93222.0,93221.0,0.1072376]
[1745463772951,0.0556187,93222.0,93221.0,0.1391376]
[1745463775160,0.002,93222.0,93221.0,0.3111376]
[1745463775858,0.1092364,93222.0,93221.0,0.3111376]
[1745463776156,0.1082364,93222.0,93221.0,0.3121376]
[1745463776657,0.1072364,93222.0,93221.0,0.3457376]
[1745463777849,0.1072364,93222.0,93221.0,0.3131376]
[1745463778250,0.1072364,93222.0,93221.0,0.1411376]
[1745463779046,0.1072364,93222.0,93221.0,0.1727376]
[1745463779251,0.1072364,93222.0,93221.0,0.1737376]
[1745463780055,0.1072364,93222.0,93221.0,0.1727376]
[1745463780262,0.1072364,93222.0,93221.0,0.1737376]
[1745463780451,0.1072364,93222.0,93221.0,0.1411376]
[1745463780873,0.1072364,93222.0,93221.0,0.0339]
[1745463781051,0.1072364,93222.0,93221.0,0.1411376]
[1745463781253,0.1689364,93222.0,93221.0,0.1411376]
[1745463782262,0.1689364,93222.0,93221.0,0.1401376]
[1745463785359,0.1689364,93222.0,93221.0,0.1411376]
[1745463787550,0.1689364,93222.0,93221.0,0.0339]
[1745463787756,0.17813932,93222.0,93221.0,0.1411376]
[1745463789651,0.17813932,93222.0,93221.0,0.0339]
[1745463789963,0.1072502,93210.0,93209.0,0.1608736]
[1745463790158,0.0536244,93212.0,93211.0,0.1072491]
[1745463791363,0.0536244,93212.0,93211.0,0.2792491]
[1745463791865,0.0536244,93212.0,93211.0,0.2802491]
[1745463792973,0.0536244,93212.0,93211.0,0.2812491]
[1745463794261,0.0536244,93212.0,93211.0,0.3139491]
[1745463799373,0.0536244,93212.0,93211.0,0.1419491]
[1745463800261,0.0536244,93212.0,93211.0,0.3139491]
[1745463803372,0.0536244,93212.0,93211.0,0.174]
[1745463804074,0.1072525,93208.0,93206.0,0.00107289]
[1745463804267,0.1072675,93195.0,93186.0,0.21829728]
[1745463804469,0.1072675,93195.0,93194.0,1e-08]
[1745463804781,0.2145715,93195.0,93194.0,1e-08]
[1745463804982,0.5288715,93195.0,93194.0,1e-08]
[1745463805182,0.7008715,93195.0,93194.0,1e-08]
[1745463805571,0.1072767,93187.0,93186.0,0.21829728]
[1745463805782,0.4680767,93187.0,93186.0,0.21829728]
[1745463805981,0.5753887,93187.0,93186.0,0.21829728]
[1745463806182,1.26481875,93187.0,93186.0,0.21829728]
[1745463806388,1.32911875,93187.0,93186.0,0.21829728]
[1745463806779,1.33011875,93187.0,93186.0,0.22229728]
[1745463807180,1.15811875,93187.0,93186.0,0.22229728]
[1745463807580,0.65811875,93187.0,93186.0,0.22229728]
[1745463807986,1.15911875,93187.0,93186.0,0.22629728]
[1745463808188,0.1072882,93177.0,93176.0,0.00107323]
[1745463808392,0.1786082,93177.0,93176.0,0.00107323]
[1745463808597,0.07132,93177.0,93158.0,0.0536548]
[1745463808889,0.1073032,93164.0,93163.0,0.0323]
[1745463809291,0.1073078,93160.0,93159.0,0.41982144]
[1745463809687,0.1073078,93160.0,93159.0,0.36616714]
[1745463809895,0.4681078,93160.0,93159.0,0.00536714]
[1745463810894,0.5002078,93160.0,93159.0,0.11267614]
[1745463811293,0.5012078,93160.0,93159.0,0.11467614]
[1745463811793,0.5725278,93160.0,93159.0,0.11467614]
[1745463811995,0.5725278,93160.0,93159.0,0.11267614]
[1745463812294,0.5735278,93160.0,93159.0,0.11267614]
[1745463812688,0.2127278,93160.0,93159.0,0.11267614]
[1745463813195,0.2127278,93160.0,93159.0,0.14377614]
[1745463814194,0.2127278,93160.0,93159.0,0.11267614]
[1745463814897,0.5735278,93160.0,93159.0,0.11267614]
[1745463815298,0.5735278,93160.0,93159.0,0.00536714]
[1745463816799,0.5735278,93160.0,93159.0,0.11267614]
[1745463817599,0.5735278,93160.0,93159.0,0.11567614]
[1745463817900,0.5735278,93160.0,93159.0,0.11667614]
[1745463820388,0.002,93160.0,93159.0,0.11667614]
[1745463820701,0.002,93160.0,93159.0,0.25462014]
[1745463821102,0.002,93160.0,93159.0,0.42662014]
[1745463822099,0.002,93160.0,93159.0,0.31927614]
[1745463823804,0.002,93160.0,93159.0,0.35237614]
[1745463825107,0.1093078,93160.0,93159.0,0.35237614]
[1745463827301,0.002,93160.0,93159.0,0.35237614]
[1745463829007,0.1093078,93160.0,93159.0,0.35237614]
[1745463833206,0.002,93160.0,93159.0,0.35237614]
[1745463838532,0.1093078,93160.0,93159.0,0.35237614]
[1745463838811,0.1093078,93160.0,93159.0,0.32177614]
[1745463839010,0.1093078,93160.0,93159.0,0.28867614]
[1745463840213,0.1093078,93160.0,93159.0,0.11667614]
[1745463840416,0.1093078,93160.0,93159.0,0.00936714]
[1745463841310,0.1093078,93160.0,93159.0,0.11667614]
[1745463843408,0.1093078,93160.0,93159.0,0.00936714]
[1745463843607,0.1073216,93148.0,93147.0,0.0314]
[1745463843805,0.1073216,93148.0,93147.0,0.1387228]
[1745463844315,0.1379216,93148.0,93147.0,0.3107228]
[1745463844510,0.1707216,93148.0,93147.0,0.3107228]
[1745463844816,0.1717216,93148.0,93147.0,0.2823228]
[1745463845208,0.1717216,93148.0,93147.0,0.1417228]
[1745463846119,0.1727216,93148.0,93147.0,0.1417228]
[1745463846808,0.1717216,93148.0,93147.0,0.1417228]
[1745463847008,0.1727216,93148.0,93147.0,0.1417228]
[1745463847613,0.17252547,93148.0,93147.0,0.1719228]
[1745463848421,0.17252547,93148.0,93147.0,0.1417228]
[1745463848616,0.0654,93148.0,93147.0,0.1417228]
[1745463848822,0.002,93148.0,93147.0,0.1417228]
[1745463849122,0.10224,93158.0,93157.0,0.1073113]
[1745463849322,0.07124,93158.0,93157.0,0.4681113]
[1745463849512,0.10789838,93160.0,93159.0,0.107309]
[1745463850116,0.10789838,93160.0,93159.0,0.279309]
[1745463851022,0.10989838,93160.0,93159.0,0.279309]
[1745463852020,0.04293,93164.0,93163.0,0.1073044]
[1745463852215,0.07124,93176.0,93169.0,0.0536482]
[1745463852415,0.07124,93176.0,93175.0,0.1072905]
[1745463852623,0.07124,93176.0,93175.0,0.0950205]
[1745463852820,0.07124,93176.0,93175.0,0.1273205]
[1745463853116,0.07124,93176.0,93175.0,0.2993205]